[Event "Titled Tuesday Blitz May 23 Late 2023"]
[White "Slavin, Alexey"]
[Black "Prado, Alexandra"]
[WhiteFideId "24104388"]
[BlackFideId "3301346"]
[WhiteElo "2264"]
[BlackElo "1759"]
[Result "1-0"]
[Round "05"]
[TimeControl "180+2"]
[Date "2023.05.23"]
[WhiteClock "0:01:03"]
[BlackClock "0:00:00"]

1. e4 {[%clk 0:02:57]}  c5 {[%clk 0:02:59]} 2. g3 {[%clk 0:02:57]}  g6 {[%clk 0:02:51]} 3. Bg2 {[%clk 0:02:57]}  Bg7 {[%clk 0:02:51]} 4. Ne2 {[%clk 0:02:57]}  d6 {[%clk 0:02:48]} 5. O-O {[%clk 0:02:57]}  Nc6 {[%clk 0:02:48]} 6. Nbc3 {[%clk 0:02:57]}  Nf6 {[%clk 0:02:48]} 7. a3 {[%clk 0:02:57]}  O-O {[%clk 0:02:47]} 8. Rb1 {[%clk 0:02:58]}  a6 {[%clk 0:02:41]} 9. b4 {[%clk 0:02:57]}  cxb4 {[%clk 0:02:21]} 10. axb4 {[%clk 0:02:57]}  Rb8 {[%clk 0:02:19]} 11. b5 {[%clk 0:02:56]}  axb5 {[%clk 0:02:16]} 12. Nxb5 {[%clk 0:02:56]}  Bd7 {[%clk 0:02:02]} 13. h3 {[%clk 0:02:53]}  Qa5 {[%clk 0:01:33]} 14. d4 {[%clk 0:02:45]}  Na7 {[%clk 0:01:12]} 15. Bd2 {[%clk 0:02:21]}  Qb6 {[%clk 0:01:10]} 16. Nbc3 {[%clk 0:02:06]}  Qc7 {[%clk 0:01:02]} 17. f4 {[%clk 0:02:03]}  Rfc8 {[%clk 0:00:51]} 18. e5 {[%clk 0:01:59]}  Ne8 {[%clk 0:00:46]} 19. Nd5 {[%clk 0:01:56]}  Qd8 {[%clk 0:00:42]} 20. Nb6 {[%clk 0:01:39]}  Rc7 {[%clk 0:00:24]} 21. c4 {[%clk 0:01:35]}  dxe5 {[%clk 0:00:20]} 22. fxe5 {[%clk 0:01:35]}  Bf5 {[%clk 0:00:09]} 23. Rb3 {[%clk 0:01:30]}  Nc6 {[%clk 0:00:08]} 24. Nd5 {[%clk 0:01:26]}  e6 {[%clk 0:00:07]} 25. Nxc7 {[%clk 0:01:25]}  Qxc7 {[%clk 0:00:08]} 26. Be3 {[%clk 0:01:19]}  Qd7 {[%clk 0:00:07]} 27. Kh2 {[%clk 0:01:17]}  Nc7 {[%clk 0:00:07]} 28. g4 {[%clk 0:01:04]}  Bxg4 {[%clk 0:00:00]} 29. hxg4 {[%clk 0:01:03]} 1-0


[Site "https://www.chess.com"]

[Event "Titled Tuesday Blitz May 23 Late 2023"]
[White "Ottosen, David"]
[Black "Santos Flores, Alberto"]
[WhiteFideId "2603080"]
[BlackFideId "3601234"]
[WhiteElo "2029"]
[BlackElo "2235"]
[Result "1-0"]
[Round "05"]
[TimeControl "180+2"]
[Date "2023.05.23"]
[WhiteClock "0:01:36"]
[BlackClock "0:02:35"]

1. e4 {[%clk 0:03:00]}  c5 {[%clk 0:03:00]} 2. Nf3 {[%clk 0:03:01]}  Nc6 {[%clk 0:03:00]} 3. d4 {[%clk 0:03:01]}  cxd4 {[%clk 0:03:01]} 4. Nxd4 {[%clk 0:03:02]}  g6 {[%clk 0:03:00]} 5. Nc3 {[%clk 0:03:02]}  Bg7 {[%clk 0:03:01]} 6. Be3 {[%clk 0:03:03]}  Nf6 {[%clk 0:03:01]} 7. Bc4 {[%clk 0:03:03]}  O-O {[%clk 0:03:01]} 8. Bb3 {[%clk 0:03:04]}  d6 {[%clk 0:03:02]} 9. f3 {[%clk 0:03:04]}  Bd7 {[%clk 0:03:02]} 10. Qd2 {[%clk 0:03:04]}  Rc8 {[%clk 0:03:02]} 11. O-O-O {[%clk 0:03:04]}  Ne5 {[%clk 0:03:02]} 12. h4 {[%clk 0:03:04]}  h5 {[%clk 0:03:02]} 13. Bg5 {[%clk 0:03:04]}  Rc5 {[%clk 0:03:02]} 14. g4 {[%clk 0:03:03]}  hxg4 {[%clk 0:03:02]} 15. f4 {[%clk 0:03:04]}  Nc4 {[%clk 0:03:02]} 16. Qe2 {[%clk 0:03:05]}  b5 {[%clk 0:03:02]} 17. f5 {[%clk 0:03:03]}  Qa5 {[%clk 0:02:47]} 18. h5 {[%clk 0:03:01]}  Nxb2 {[%clk 0:02:46]} 19. hxg6 {[%clk 0:02:09]}  Qxc3 {[%clk 0:02:45]} 20. Bxf6 {[%clk 0:01:54]}  exf6 {[%clk 0:02:40]} 21. Qh2 {[%clk 0:01:51]}  Rfc8 {[%clk 0:02:35]} 22. gxf7+ {[%clk 0:01:36]}  Kf8 {[%clk 0:02:35]} 23. Qxd6# {[%clk 0:01:36]} 1-0


[Site "https://www.chess.com"]

[Event "Titled Tuesday Blitz May 23 Late 2023"]
[White "Ward, Ieuan C"]
[Black "Hajiyev, Kanan"]
[WhiteFideId "406627"]
[BlackFideId "13404148"]
[WhiteElo "2210"]
[BlackElo "2103"]
[Result "1-0"]
[Round "05"]
[TimeControl "180+2"]
[Date "2023.05.23"]
[WhiteClock "0:00:06"]
[BlackClock "0:01:08"]

1. d4 {[%clk 0:03:00]}  d5 {[%clk 0:02:59]} 2. c4 {[%clk 0:03:00]}  c6 {[%clk 0:02:57]} 3. Nf3 {[%clk 0:02:59]}  Nf6 {[%clk 0:02:54]} 4. Nc3 {[%clk 0:02:59]}  g6 {[%clk 0:02:54]} 5. e3 {[%clk 0:02:57]}  Bg7 {[%clk 0:02:54]} 6. Bd3 {[%clk 0:02:57]}  O-O {[%clk 0:02:52]} 7. O-O {[%clk 0:02:58]}  Bf5 {[%clk 0:02:52]} 8. Bxf5 {[%clk 0:02:56]}  gxf5 {[%clk 0:02:52]} 9. cxd5 {[%clk 0:02:53]}  cxd5 {[%clk 0:02:53]} 10. Ne5 {[%clk 0:02:46]}  Nbd7 {[%clk 0:02:51]} 11. f4 {[%clk 0:02:45]}  e6 {[%clk 0:02:49]} 12. Bd2 {[%clk 0:02:45]}  Nxe5 {[%clk 0:02:48]} 13. fxe5 {[%clk 0:02:36]}  Ne4 {[%clk 0:02:49]} 14. Nxe4 {[%clk 0:02:34]}  dxe4 {[%clk 0:02:46]} 15. Bb4 {[%clk 0:02:28]}  Re8 {[%clk 0:02:46]} 16. Rc1 {[%clk 0:02:27]}  Qb6 {[%clk 0:02:42]} 17. Qb3 {[%clk 0:02:12]}  a5 {[%clk 0:02:40]} 18. Bd2 {[%clk 0:02:06]}  Qxb3 {[%clk 0:02:40]} 19. axb3 {[%clk 0:02:07]}  b6 {[%clk 0:02:40]} 20. Rc6 {[%clk 0:02:06]}  Rab8 {[%clk 0:02:38]} 21. Rfc1 {[%clk 0:02:01]}  Rb7 {[%clk 0:02:35]} 22. Rc7 {[%clk 0:01:57]}  Reb8 {[%clk 0:02:30]} 23. b4 {[%clk 0:01:54]}  Rxc7 {[%clk 0:02:26]} 24. Rxc7 {[%clk 0:01:53]}  a4 {[%clk 0:02:25]} 25. b5 {[%clk 0:01:53]}  Bf8 {[%clk 0:02:20]} 26. Ra7 {[%clk 0:01:49]}  Rc8 {[%clk 0:02:17]} 27. Rxa4 {[%clk 0:01:38]}  Rc2 {[%clk 0:02:16]} 28. Be1 {[%clk 0:01:18]}  Rxb2 {[%clk 0:02:12]} 29. Ra8 {[%clk 0:01:13]}  Kg7 {[%clk 0:02:11]} 30. Bh4 {[%clk 0:01:10]}  Bb4 {[%clk 0:01:57]} 31. Bf6+ {[%clk 0:00:48]}  Kg6 {[%clk 0:01:46]} 32. Rg8+ {[%clk 0:00:46]}  Kh6 {[%clk 0:01:46]} 33. h3 {[%clk 0:00:40]}  Bd2 {[%clk 0:01:38]} 34. Bg5+ {[%clk 0:00:35]}  Kh5 {[%clk 0:01:37]} 35. Bf4 {[%clk 0:00:18]}  Rb3 {[%clk 0:01:23]} 36. Rg5+ {[%clk 0:00:15]}  Kh4 {[%clk 0:01:16]} 37. Kh2 {[%clk 0:00:15]}  Be1 {[%clk 0:01:11]} 38. g3+ {[%clk 0:00:14]}  Bxg3+ {[%clk 0:01:10]} 39. Rxg3 {[%clk 0:00:14]}  Rb2+ {[%clk 0:01:10]} 40. Rg2 {[%clk 0:00:14]}  Rxb5 {[%clk 0:01:11]} 41. Bg5+ {[%clk 0:00:10]}  Kh5 {[%clk 0:01:11]} 42. Be7 {[%clk 0:00:09]}  Rb3 {[%clk 0:01:11]} 43. Rg5+ {[%clk 0:00:07]}  Kh6 {[%clk 0:01:11]} 44. Rg3 {[%clk 0:00:06]}  b5 {[%clk 0:01:09]} 45. h4 {[%clk 0:00:06]}  Rb2+ {[%clk 0:01:09]} 46. Kh3 {[%clk 0:00:06]}  b4 {[%clk 0:01:09]} 47. Bf8+ {[%clk 0:00:05]}  Kh5 {[%clk 0:01:08]} 48. Rg5# {[%clk 0:00:06]} 1-0


[Site "https://www.chess.com"]

[Event "Titled Tuesday Blitz May 23 Late 2023"]
[White "Hartikainen, Jarmo"]
[Black "Harish, Neeraj"]
[WhiteFideId "503134"]
[BlackFideId "30958130"]
[WhiteElo "2074"]
[BlackElo "1879"]
[Result "1-0"]
[Round "05"]
[TimeControl "180+2"]
[Date "2023.05.23"]
[WhiteClock "0:01:22"]
[BlackClock "0:00:00"]

1. e4 {[%clk 0:03:00]}  c5 {[%clk 0:02:57]} 2. c3 {[%clk 0:03:00]}  Nf6 {[%clk 0:02:57]} 3. e5 {[%clk 0:02:59]}  Nd5 {[%clk 0:02:57]} 4. d4 {[%clk 0:02:59]}  cxd4 {[%clk 0:02:57]} 5. Nf3 {[%clk 0:02:59]}  Nc6 {[%clk 0:02:57]} 6. cxd4 {[%clk 0:02:56]}  d6 {[%clk 0:02:56]} 7. Nc3 {[%clk 0:02:53]}  Nxc3 {[%clk 0:02:51]} 8. bxc3 {[%clk 0:02:53]}  dxe5 {[%clk 0:02:45]} 9. d5 {[%clk 0:02:51]}  e4 {[%clk 0:02:46]} 10. dxc6 {[%clk 0:02:50]}  Qxd1+ {[%clk 0:02:43]} 11. Kxd1 {[%clk 0:02:49]}  exf3 {[%clk 0:02:44]} 12. Bb5 {[%clk 0:02:49]}  Kd8 {[%clk 0:02:27]} 13. Bf4 {[%clk 0:02:48]}  e5 {[%clk 0:01:49]} 14. Bxe5 {[%clk 0:02:47]}  a6 {[%clk 0:00:58]} 15. c7+ {[%clk 0:02:33]}  Ke7 {[%clk 0:00:58]} 16. Bf1 {[%clk 0:02:13]}  f6 {[%clk 0:00:40]} 17. Bg3 {[%clk 0:02:01]}  Bg4 {[%clk 0:00:34]} 18. Kd2 {[%clk 0:01:52]}  g6 {[%clk 0:00:16]} 19. h3 {[%clk 0:01:47]}  Bh6+ {[%clk 0:00:12]} 20. Kc2 {[%clk 0:01:44]}  Bf5+ {[%clk 0:00:12]} 21. Kb2 {[%clk 0:01:43]}  Rac8 {[%clk 0:00:06]} 22. gxf3 {[%clk 0:01:37]}  Kf7 {[%clk 0:00:02]} 23. Bc4+ {[%clk 0:01:31]}  Kg7 {[%clk 0:00:02]} 24. Rae1 {[%clk 0:01:28]}  Rhe8 {[%clk 0:00:00]} 25. h4 {[%clk 0:01:22]} 1-0


[Site "https://www.chess.com"]

[Event "Titled Tuesday Blitz May 23 Late 2023"]
[White "Powell, Paul"]
[Black "Ziatdinov, Raset"]
[WhiteFideId "2005840"]
[BlackFideId "2015323"]
[WhiteElo "2083"]
[BlackElo "2220"]
[Result "0-1"]
[Round "05"]
[TimeControl "180+2"]
[Date "2023.05.23"]
[WhiteClock "0:00:04"]
[BlackClock "0:00:54"]

1. d4 {[%clk 0:03:00]}  Nf6 {[%clk 0:02:57]} 2. Nf3 {[%clk 0:03:00]}  g6 {[%clk 0:02:58]} 3. Bf4 {[%clk 0:02:59]}  Bg7 {[%clk 0:02:59]} 4. e3 {[%clk 0:02:58]}  d6 {[%clk 0:02:59]} 5. Be2 {[%clk 0:02:56]}  O-O {[%clk 0:03:00]} 6. O-O {[%clk 0:02:56]}  Nh5 {[%clk 0:02:58]} 7. Bg5 {[%clk 0:02:56]}  h6 {[%clk 0:02:59]} 8. Bh4 {[%clk 0:02:56]}  g5 {[%clk 0:02:58]} 9. Nfd2 {[%clk 0:02:56]}  Nf6 {[%clk 0:02:50]} 10. Bg3 {[%clk 0:02:56]}  Nc6 {[%clk 0:02:49]} 11. c4 {[%clk 0:02:55]}  e5 {[%clk 0:02:49]} 12. d5 {[%clk 0:02:53]}  Ne7 {[%clk 0:02:49]} 13. h3 {[%clk 0:02:50]}  Ne8 {[%clk 0:02:42]} 14. Nc3 {[%clk 0:02:46]}  f5 {[%clk 0:02:42]} 15. Rc1 {[%clk 0:02:44]}  f4 {[%clk 0:02:41]} 16. Bh2 {[%clk 0:02:33]}  Ng6 {[%clk 0:02:39]} 17. Bd3 {[%clk 0:02:29]}  Nh4 {[%clk 0:02:29]} 18. Nf3 {[%clk 0:02:20]}  Nxf3+ {[%clk 0:02:16]} 19. gxf3 {[%clk 0:02:15]}  Nf6 {[%clk 0:02:17]} 20. Ne4 {[%clk 0:02:04]}  Bxh3 {[%clk 0:02:13]} 21. Nxf6+ {[%clk 0:02:04]}  Qxf6 {[%clk 0:02:13]} 22. Be4 {[%clk 0:01:49]}  fxe3 {[%clk 0:01:57]} 23. fxe3 {[%clk 0:01:46]}  Bxf1 {[%clk 0:01:48]} 24. Qxf1 {[%clk 0:01:37]}  g4 {[%clk 0:01:47]} 25. fxg4 {[%clk 0:01:27]}  Qg5 {[%clk 0:01:45]} 26. Qe2 {[%clk 0:01:27]}  h5 {[%clk 0:01:41]} 27. Kh1 {[%clk 0:01:22]}  Bh6 {[%clk 0:01:32]} 28. Rg1 {[%clk 0:01:18]}  h4 {[%clk 0:01:30]} 29. Bb1 {[%clk 0:01:12]}  Qxe3 {[%clk 0:01:28]} 30. Qc2 {[%clk 0:00:56]}  Qf3+ {[%clk 0:01:16]} 31. Rg2 {[%clk 0:00:56]}  e4 {[%clk 0:01:16]} 32. Qxe4 {[%clk 0:00:48]}  Qxe4 {[%clk 0:01:12]} 33. Bxe4 {[%clk 0:00:48]}  Rf1+ {[%clk 0:01:11]} 34. Bg1 {[%clk 0:00:46]}  Re8 {[%clk 0:01:10]} 35. Bf5 {[%clk 0:00:44]}  Ree1 {[%clk 0:01:10]} 36. g5 {[%clk 0:00:31]}  Bg7 {[%clk 0:01:08]} 37. Be6+ {[%clk 0:00:23]}  Kf8 {[%clk 0:01:03]} 38. Kh2 {[%clk 0:00:11]}  Be5+ {[%clk 0:01:02]} 39. Kh3 {[%clk 0:00:11]}  Rxg1 {[%clk 0:00:59]} 40. Rf2+ {[%clk 0:00:10]}  Ke8 {[%clk 0:00:55]} 41. g6 {[%clk 0:00:08]}  Rg3+ {[%clk 0:00:55]} 42. Kxh4 {[%clk 0:00:04]}  Rh1+ {[%clk 0:00:54]} 0-1


[Site "https://www.chess.com"]

[Event "Titled Tuesday Blitz May 23 Late 2023"]
[White "Antonova, Nadezhda"]
[Black "Dmitriev, Sergey"]
[WhiteFideId "14700182"]
[BlackFideId "14101785"]
[WhiteElo "1799"]
[BlackElo "2132"]
[Result "1-0"]
[Round "05"]
[TimeControl "180+2"]
[Date "2023.05.23"]
[WhiteClock "0:01:57"]
[BlackClock "0:01:03"]

1. d4 {[%clk 0:02:59]}  d6 {[%clk 0:02:59]} 2. Nf3 {[%clk 0:02:59]}  g6 {[%clk 0:02:59]} 3. b3 {[%clk 0:02:57]}  Bg7 {[%clk 0:02:59]} 4. Bb2 {[%clk 0:02:58]}  Nf6 {[%clk 0:02:59]} 5. g3 {[%clk 0:02:58]}  O-O {[%clk 0:03:00]} 6. Bg2 {[%clk 0:02:59]}  Nc6 {[%clk 0:03:00]} 7. O-O {[%clk 0:02:59]}  Re8 {[%clk 0:02:59]} 8. c4 {[%clk 0:02:59]}  Bf5 {[%clk 0:02:53]} 9. d5 {[%clk 0:02:54]}  Nb8 {[%clk 0:02:51]} 10. Nbd2 {[%clk 0:02:51]}  e5 {[%clk 0:02:48]} 11. dxe6 {[%clk 0:02:45]}  Bxe6 {[%clk 0:02:46]} 12. Re1 {[%clk 0:02:39]}  Nc6 {[%clk 0:02:44]} 13. Qc1 {[%clk 0:02:32]}  Qd7 {[%clk 0:02:44]} 14. Nd4 {[%clk 0:02:28]}  Nxd4 {[%clk 0:02:40]} 15. Bxd4 {[%clk 0:02:29]}  c6 {[%clk 0:02:38]} 16. e4 {[%clk 0:02:25]}  Bh3 {[%clk 0:02:34]} 17. Bh1 {[%clk 0:02:24]}  Nh5 {[%clk 0:02:11]} 18. Qc3 {[%clk 0:02:21]}  c5 {[%clk 0:02:05]} 19. Bxg7 {[%clk 0:02:20]}  Nxg7 {[%clk 0:02:05]} 20. Rad1 {[%clk 0:02:19]}  f5 {[%clk 0:01:59]} 21. exf5 {[%clk 0:02:05]}  Nxf5 {[%clk 0:01:55]} 22. Ne4 {[%clk 0:02:05]}  Rxe4 {[%clk 0:01:24]} 23. Bxe4 {[%clk 0:02:03]}  Nd4 {[%clk 0:01:22]} 24. Bd5+ {[%clk 0:02:03]}  Kg7 {[%clk 0:01:18]} 25. Rxd4 {[%clk 0:02:02]}  cxd4 {[%clk 0:01:17]} 26. Qxd4+ {[%clk 0:02:03]}  Kh6 {[%clk 0:01:11]} 27. Qe3+ {[%clk 0:02:03]}  Kg7 {[%clk 0:01:10]} 28. Qe7+ {[%clk 0:02:02]}  Kh6 {[%clk 0:01:10]} 29. Qh4+ {[%clk 0:01:57]}  Kg7 {[%clk 0:01:05]} 30. Re7+ {[%clk 0:01:57]}  Qxe7 {[%clk 0:01:03]} 31. Qxe7+ {[%clk 0:01:57]} 1-0


[Site "https://www.chess.com"]

[Event "Titled Tuesday Blitz May 23 Late 2023"]
[White "Nihal Sarin"]
[Black "Bortnyk, Olexandr"]
[WhiteFideId "25092340"]
[BlackFideId "14120828"]
[WhiteElo "2689"]
[BlackElo "2734"]
[Result "0-1"]
[Round "06"]
[TimeControl "180+2"]
[Date "2023.05.23"]
[WhiteClock "0:00:00"]
[BlackClock "0:00:04"]

1. d4 {[%clk 0:02:53]}  d6 {[%clk 0:02:57]} 2. Nf3 {[%clk 0:02:51]}  Nf6 {[%clk 0:02:57]} 3. Bg5 {[%clk 0:02:51]}  Nbd7 {[%clk 0:02:53]} 4. Nbd2 {[%clk 0:02:51]}  e5 {[%clk 0:02:41]} 5. e3 {[%clk 0:02:50]}  Be7 {[%clk 0:02:41]} 6. Bc4 {[%clk 0:02:50]}  O-O {[%clk 0:02:41]} 7. c3 {[%clk 0:02:47]}  e4 {[%clk 0:02:38]} 8. Ng1 {[%clk 0:02:46]}  d5 {[%clk 0:02:37]} 9. Bb3 {[%clk 0:02:47]}  c5 {[%clk 0:02:36]} 10. Ne2 {[%clk 0:02:43]}  h6 {[%clk 0:02:34]} 11. Bxf6 {[%clk 0:02:42]}  Nxf6 {[%clk 0:02:35]} 12. O-O {[%clk 0:02:40]}  b6 {[%clk 0:02:26]} 13. h3 {[%clk 0:02:33]}  Ba6 {[%clk 0:02:25]} 14. f3 {[%clk 0:02:34]}  exf3 {[%clk 0:02:19]} 15. Rxf3 {[%clk 0:02:34]}  Ne4 {[%clk 0:01:40]} 16. Nf4 {[%clk 0:02:30]}  Bb7 {[%clk 0:01:28]} 17. Nxe4 {[%clk 0:02:05]}  dxe4 {[%clk 0:01:28]} 18. Rg3 {[%clk 0:02:06]}  Bh4 {[%clk 0:01:16]} 19. Rg4 {[%clk 0:02:06]}  Kh7 {[%clk 0:00:52]} 20. dxc5 {[%clk 0:01:49]}  bxc5 {[%clk 0:00:45]} 21. Bd5 {[%clk 0:01:40]}  Bxd5 {[%clk 0:00:42]} 22. Qxd5 {[%clk 0:01:40]}  Bg5 {[%clk 0:00:24]} 23. Qxc5 {[%clk 0:00:51]}  Qb6 {[%clk 0:00:14]} 24. Qxb6 {[%clk 0:00:26]}  axb6 {[%clk 0:00:15]} 25. Nd5 {[%clk 0:00:18]}  f5 {[%clk 0:00:15]} 26. Rg3 {[%clk 0:00:19]}  Bh4 {[%clk 0:00:15]} 27. Kh2 {[%clk 0:00:19]}  Rab8 {[%clk 0:00:06]} 28. a4 {[%clk 0:00:17]}  Rfd8 {[%clk 0:00:05]} 29. c4 {[%clk 0:00:17]}  Rd6 {[%clk 0:00:02]} 30. b3 {[%clk 0:00:15]}  g6 {[%clk 0:00:02]} 31. Rd1 {[%clk 0:00:13]}  Rbd8 {[%clk 0:00:02]} 32. Ra1 {[%clk 0:00:08]}  Kg7 {[%clk 0:00:03]} 33. a5 {[%clk 0:00:09]}  bxa5 {[%clk 0:00:03]} 34. Rxa5 {[%clk 0:00:09]}  R8d7 {[%clk 0:00:04]} 35. b4 {[%clk 0:00:09]}  Rb7 {[%clk 0:00:04]} 36. b5 {[%clk 0:00:07]}  h5 {[%clk 0:00:04]} 37. b6 {[%clk 0:00:06]}  Bd8 {[%clk 0:00:05]} 38. Rb5 {[%clk 0:00:03]}  h4 {[%clk 0:00:04]} 39. Rxg6+ {[%clk 0:00:01]}  Rxg6 {[%clk 0:00:04]} 40. c5 {[%clk 0:00:02]}  Rc6 {[%clk 0:00:01]} 41. Nb4 {[%clk 0:00:02]}  Rc8 {[%clk 0:00:02]} 42. Kg1 {[%clk 0:00:01]}  Kf7 {[%clk 0:00:02]} 43. Kf1 {[%clk 0:00:02]}  Ke6 {[%clk 0:00:02]} 44. Ke2 {[%clk 0:00:02]}  Ra8 {[%clk 0:00:03]} 45. Kd1 {[%clk 0:00:02]}  Ra3 {[%clk 0:00:02]} 46. Nc6 {[%clk 0:00:01]}  Rd3+ {[%clk 0:00:02]} 47. Kc2 {[%clk 0:00:02]}  Bf6 {[%clk 0:00:02]} 48. Na5 {[%clk 0:00:02]}  Rb8 {[%clk 0:00:03]} 49. c6 {[%clk 0:00:01]}  Rc3+ {[%clk 0:00:02]} 50. Kb1 {[%clk 0:00:02]}  Kd6 {[%clk 0:00:02]} 51. b7 {[%clk 0:00:01]}  Rxc6 {[%clk 0:00:02]} 52. Nxc6 {[%clk 0:00:02]}  Kxc6 {[%clk 0:00:03]} 53. Rxf5 {[%clk 0:00:02]}  Rxb7+ {[%clk 0:00:03]} 54. Kc2 {[%clk 0:00:03]}  Be7 {[%clk 0:00:02]} 55. Rf4 {[%clk 0:00:03]}  Kd5 {[%clk 0:00:03]} 56. Rf5+ {[%clk 0:00:03]}  Ke6 {[%clk 0:00:03]} 57. Rh5 {[%clk 0:00:04]}  Rd7 {[%clk 0:00:03]} 58. Rh6+ {[%clk 0:00:04]}  Bf6 {[%clk 0:00:03]} 59. Rg6 {[%clk 0:00:02]}  Rd3 {[%clk 0:00:03]} 60. g3 {[%clk 0:00:01]}  Rxe3 {[%clk 0:00:03]} 61. gxh4 {[%clk 0:00:02]}  Rxh3 {[%clk 0:00:03]} 62. Kd2 {[%clk 0:00:02]}  Kf5 {[%clk 0:00:03]} 63. Rg8 {[%clk 0:00:02]}  Bxh4 {[%clk 0:00:04]} 64. Ke2 {[%clk 0:00:02]}  Bg5 {[%clk 0:00:04]} 65. Rf8+ {[%clk 0:00:03]}  Kg4 {[%clk 0:00:04]} 66. Rf2 {[%clk 0:00:02]}  Ra3 {[%clk 0:00:04]} 67. Rf8 {[%clk 0:00:01]}  Ra2+ {[%clk 0:00:04]} 68. Kd1 {[%clk 0:00:00]}  Bf4 {[%clk 0:00:04]} 0-1


[Site "https://www.chess.com"]

[Event "Titled Tuesday Blitz May 23 Late 2023"]
[White "Bluebaum, Matthias"]
[Black "Bachmann, Axel"]
[WhiteFideId "24651516"]
[BlackFideId "3700488"]
[WhiteElo "2639"]
[BlackElo "2605"]
[Result "0-1"]
[Round "06"]
[TimeControl "180+2"]
[Date "2023.05.23"]
[WhiteClock "0:00:21"]
[BlackClock "0:00:04"]

1. d4 {[%clk 0:03:00]}  Nf6 {[%clk 0:02:58]} 2. c4 {[%clk 0:03:01]}  g6 {[%clk 0:02:54]} 3. Nc3 {[%clk 0:03:01]}  Bg7 {[%clk 0:02:54]} 4. e4 {[%clk 0:03:02]}  d6 {[%clk 0:02:55]} 5. Nf3 {[%clk 0:03:02]}  O-O {[%clk 0:02:55]} 6. Be2 {[%clk 0:03:03]}  e5 {[%clk 0:02:55]} 7. Be3 {[%clk 0:03:04]}  Nbd7 {[%clk 0:02:55]} 8. O-O {[%clk 0:03:04]}  Qe7 {[%clk 0:02:52]} 9. Qc2 {[%clk 0:03:04]}  c6 {[%clk 0:02:49]} 10. Rad1 {[%clk 0:03:04]}  exd4 {[%clk 0:02:45]} 11. Nxd4 {[%clk 0:03:05]}  Re8 {[%clk 0:02:45]} 12. f3 {[%clk 0:03:05]}  Nc5 {[%clk 0:02:32]} 13. Qc1 {[%clk 0:02:56]}  Ne6 {[%clk 0:02:16]} 14. Nc2 {[%clk 0:02:50]}  b6 {[%clk 0:02:12]} 15. Rfe1 {[%clk 0:02:21]}  Bb7 {[%clk 0:02:12]} 16. f4 {[%clk 0:02:21]}  Qc7 {[%clk 0:02:04]} 17. Bf3 {[%clk 0:02:20]}  Rad8 {[%clk 0:02:03]} 18. h3 {[%clk 0:02:11]}  a6 {[%clk 0:02:03]} 19. f5 {[%clk 0:01:43]}  Nc5 {[%clk 0:02:00]} 20. Bh6 {[%clk 0:01:42]}  Ncd7 {[%clk 0:01:54]} 21. Bxg7 {[%clk 0:01:21]}  Kxg7 {[%clk 0:01:55]} 22. Ne3 {[%clk 0:01:21]}  Ne5 {[%clk 0:01:52]} 23. Be2 {[%clk 0:01:22]}  b5 {[%clk 0:01:47]} 24. cxb5 {[%clk 0:01:22]}  cxb5 {[%clk 0:01:48]} 25. Qd2 {[%clk 0:01:09]}  Qc5 {[%clk 0:01:34]} 26. Rf1 {[%clk 0:00:57]}  b4 {[%clk 0:01:10]} 27. Na4 {[%clk 0:00:54]}  Qa7 {[%clk 0:01:07]} 28. fxg6 {[%clk 0:00:49]}  hxg6 {[%clk 0:01:07]} 29. Qd4 {[%clk 0:00:31]}  Qxd4 {[%clk 0:01:01]} 30. Rxd4 {[%clk 0:00:32]}  a5 {[%clk 0:01:02]} 31. Nd5 {[%clk 0:00:23]}  Nxe4 {[%clk 0:00:35]} 32. Bb5 {[%clk 0:00:12]}  Rf8 {[%clk 0:00:35]} 33. Nab6 {[%clk 0:00:08]}  Nc5 {[%clk 0:00:35]} 34. Nf6 {[%clk 0:00:05]}  Ne6 {[%clk 0:00:28]} 35. Rh4 {[%clk 0:00:05]}  Rh8 {[%clk 0:00:27]} 36. Rxh8 {[%clk 0:00:05]}  Rxh8 {[%clk 0:00:26]} 37. Ne8+ {[%clk 0:00:06]}  Rxe8 {[%clk 0:00:13]} 38. Bxe8 {[%clk 0:00:06]}  f5 {[%clk 0:00:11]} 39. Bb5 {[%clk 0:00:06]}  Kf6 {[%clk 0:00:11]} 40. Nd7+ {[%clk 0:00:06]}  Nxd7 {[%clk 0:00:10]} 41. Bxd7 {[%clk 0:00:07]}  Nc5 {[%clk 0:00:11]} 42. Bb5 {[%clk 0:00:07]}  Be4 {[%clk 0:00:09]} 43. Rd1 {[%clk 0:00:05]}  Ke5 {[%clk 0:00:10]} 44. a3 {[%clk 0:00:05]}  b3 {[%clk 0:00:07]} 45. Kf2 {[%clk 0:00:06]}  d5 {[%clk 0:00:07]} 46. g3 {[%clk 0:00:06]}  d4 {[%clk 0:00:05]} 47. h4 {[%clk 0:00:07]}  Bc2 {[%clk 0:00:04]} 48. Re1+ {[%clk 0:00:07]}  Ne4+ {[%clk 0:00:02]} 49. Kf3 {[%clk 0:00:04]}  d3 {[%clk 0:00:02]} 50. Rg1 {[%clk 0:00:02]}  d2 {[%clk 0:00:02]} 51. Be2 {[%clk 0:00:03]}  Kd4 {[%clk 0:00:02]} 52. Bd1 {[%clk 0:00:01]}  Bxd1+ {[%clk 0:00:02]} 53. Rxd1 {[%clk 0:00:02]}  Kd3 {[%clk 0:00:03]} 54. Rg1 {[%clk 0:00:03]}  Kc2 {[%clk 0:00:03]} 55. Ke2 {[%clk 0:00:03]}  Nxg3+ {[%clk 0:00:04]} 56. Kf3 {[%clk 0:00:03]}  d1=Q+ {[%clk 0:00:04]} 57. Rxd1 {[%clk 0:00:04]}  Kxd1 {[%clk 0:00:05]} 58. h5 {[%clk 0:00:04]}  Nxh5 {[%clk 0:00:05]} 59. a4 {[%clk 0:00:05]}  Kc2 {[%clk 0:00:05]} 60. Ke3 {[%clk 0:00:06]}  Kxb2 {[%clk 0:00:05]} 61. Kd4 {[%clk 0:00:06]}  Ka3 {[%clk 0:00:06]} 62. Kc5 {[%clk 0:00:07]}  Kxa4 {[%clk 0:00:06]} 63. Kd6 {[%clk 0:00:08]}  Kb4 {[%clk 0:00:06]} 64. Ke7 {[%clk 0:00:09]}  f4 {[%clk 0:00:07]} 65. Kf8 {[%clk 0:00:10]}  f3 {[%clk 0:00:07]} 66. Kf7 {[%clk 0:00:11]}  f2 {[%clk 0:00:08]} 67. Kg8 {[%clk 0:00:12]}  f1=Q {[%clk 0:00:07]} 68. Kh7 {[%clk 0:00:13]}  g5 {[%clk 0:00:07]} 69. Kh6 {[%clk 0:00:14]}  g4 {[%clk 0:00:08]} 70. Kh7 {[%clk 0:00:15]}  g3 {[%clk 0:00:08]} 71. Kh8 {[%clk 0:00:15]}  g2 {[%clk 0:00:08]} 72. Kh7 {[%clk 0:00:15]}  g1=Q {[%clk 0:00:07]} 73. Kh8 {[%clk 0:00:15]}  b2 {[%clk 0:00:08]} 74. Kh7 {[%clk 0:00:16]}  a4 {[%clk 0:00:08]} 75. Kh8 {[%clk 0:00:17]}  a3 {[%clk 0:00:08]} 76. Kh7 {[%clk 0:00:18]}  a2 {[%clk 0:00:08]} 77. Kh6 {[%clk 0:00:18]}  a1=Q {[%clk 0:00:07]} 78. Kxh5 {[%clk 0:00:19]}  b1=Q {[%clk 0:00:05]} 79. Kh4 {[%clk 0:00:20]}  Qad4+ {[%clk 0:00:05]} 80. Kh5 {[%clk 0:00:20]}  Qbf5+ {[%clk 0:00:05]} 81. Kh6 {[%clk 0:00:21]}  Qa6# {[%clk 0:00:04]} 0-1


[Site "https://www.chess.com"]